bitfinex-derivatives/quotes_ETHF0:USTF0_20250224
["timestamp","ask_amount","ask_price","bid_price","bid_amount"]
[1740408102357,3.427,2679.5,2679.4,0.74634]
[1740408103155,3.2078,2679.6,2679.0,0.3733]
[1740408103454,3.2078,2679.6,2679.1,1.86607]
[1740408103455,3.406,2679.5,2679.1,1.86607]
[1740408103750,3.406,2679.5,2679.4,0.74634]
[1740408104155,3.406,2679.5,2679.0,0.3733]
[1740408104655,3.406,2679.5,2679.1,0.49240128]
[1740408105060,3.406,2679.5,2679.2,3.2078]
[1740408105556,3.406,2679.5,2679.1,0.49240128]
[1740408105751,3.406,2679.5,2679.0,0.3733]
[1740408106553,3.2078,2679.3,2678.9,0.3733]
[1740408106754,3.2078,2679.0,2678.9,0.3733]
[1740408106959,6.6028,2679.0,2678.9,0.3733]
[1740408107552,6.6028,2679.0,2678.4,0.3733]
[1740408108151,6.6028,2679.0,2678.6,0.3733]
[1740408108553,3.2078,2678.7,2678.6,0.3733]
[1740408108752,6.1948,2678.7,2678.5,0.37330001]
[1740408108959,14.8448,2678.6,2677.4,0.58026327]
[1740408109155,2.0876,2677.9,2677.4,0.58026327]
[1740408109352,2.0876,2677.9,2677.0,0.5637]
[1740408109353,2.0876,2677.9,2677.2,1.86739]
[1740408109659,2.0876,2677.9,2677.1,3.2078]
[1740408109660,0.00559942,2678.3,2677.8,3.2078]
[1740408109854,2.6562,2678.2,2678.1,0.3733]
[1740408110358,3.02948,2678.2,2678.1,0.3733]
[1740408110957,2.2828,2678.2,2678.1,0.3733]
[1740408111353,3.02948,2678.2,2678.1,0.3733]
[1740408111857,0.74685,2677.6,2677.2,0.3733]
[1740408112052,3.4,2677.5,2677.4,1.1202]
[1740408112253,4.14687,2677.5,2677.4,0.3733]
[1740408112455,13.35467,2677.5,2677.4,0.3733]
[1740408112651,12.6078,2677.5,2676.5,0.74713]
[1740408112853,0.74703,2677.0,2676.3,3.2078]
[1740408113055,3.4,2676.9,2676.4,1.03923165]
[1740408113364,24.44393942,2678.3,2676.8,3.2078]
[1740408113365,3.398,2677.5,2676.8,3.2078]
[1740408113562,3.398,2677.4,2677.2,0.74695]
[1740408113758,3.95466,2677.6,2677.2,0.74695]
[1740408113954,3.412,2677.5,2676.8,3.2078]
[1740408114156,3.412,2677.5,2677.1,3.2078]
[1740408114570,4.15888,2677.5,2677.1,0.74698]
[1740408114858,0.74694,2677.3,2677.0,0.00559942]
[1740408115051,3.2078,2677.3,2677.0,0.00559942]
[1740408115250,0.74698,2677.1,2677.0,0.00559942]
[1740408115456,5.27647,2677.1,2676.5,3.2078]
[1740408115657,0.74707,2676.8,2676.5,3.2078]
[1740408115853,3.2078,2676.9,2676.5,3.2078]
[1740408115854,3.41,2676.7,2676.5,3.2078]
[1740408116058,0.74712,2676.6,2676.5,3.2078]
[1740408116361,3.41,2676.7,2676.5,3.2078]
[1740408116754,0.74727,2676.1,2675.7,0.5448]
[1740408116959,3.0314,2676.0,2675.7,0.5448]
[1740408117160,2.2842,2676.0,2675.4,0.74744]
[1740408117355,2.8344,2675.8,2675.2,0.58026327]
[1740408117560,0.74742,2675.6,2675.3,0.58430392]
[1740408117861,0.74748,2675.3,2675.2,0.58026327]
[1740408118064,2.461,2675.5,2675.3,0.92030968]
[1740408118363,3.416,2675.4,2675.3,1.66777968]
[1740408118659,3.418,2676.0,2675.3,0.84076261]
[1740408118865,3.418,2676.0,2675.2,1.86877]
[1740408118866,3.418,2676.0,2675.9,0.3733]
[1740408119068,4.16529,2676.0,2675.9,0.3733]
[1740408119754,3.418,2676.0,2675.4,0.3733]
[1740408119961,0.74734,2675.9,2675.5,0.74742]
[1740408120257,3.418,2676.0,2675.7,0.74735]
[1740408120467,0.00559942,2676.2,2676.1,0.74726]
[1740408121161,0.00559942,2676.2,2676.1,40.8]
[1740408121368,0.00559942,2676.2,2675.2,4.3224]
[1740408121563,3.424,2676.1,2675.2,1.1146]
[1740408121863,3.2078,2675.7,2675.2,1.1146]
[1740408122067,3.2078,2675.7,2674.9,3.768]
[1740408122068,3.426,2675.6,2674.9,3.768]
[1740408122265,3.2078,2675.4,2674.9,0.5602]
[1740408122565,3.2078,2675.1,2674.5,0.58026327]
[1740408122863,3.2078,2674.7,2673.8,1.1436]
[1740408123164,3.425,2675.0,2674.6,3.2078]
[1740408123165,3.435,2675.0,2674.6,3.2078]
[1740408123364,3.435,2675.0,2674.9,0.7476]
[1740408123866,3.435,2675.0,2674.3,1.86936]
[1740408123867,3.435,2675.0,2674.7,1.71589554]
[1740408124169,0.74762,2674.8,2674.7,0.57229554]
[1740408124765,6.6428,2675.0,2674.0,3.2078]
[1740408124965,0.7477,2674.6,2674.2,0.74779]
[1740408125270,3.444,2674.5,2674.3,0.74774]
[1740408125463,3.444,2674.5,2674.1,0.56582281]
[1740408126172,3.2078,2674.4,2673.7,1.7118]
[1740408126464,1.86942,2674.3,2673.7,1.1634]
[1740408126767,1.86942,2674.3,2673.1,3.2078]
[1740408126768,3.2078,2674.1,2673.1,3.2078]
[1740408126970,0.74789,2673.9,2673.8,0.5649763]
[1740408127265,0.74789,2673.9,2672.8,1.30536]
[1740408127266,0.74808,2673.2,2672.8,1.30536]
[1740408127468,3.453,2673.1,2672.3,1.118]
[1740408127667,3.453,2673.0,2672.3,1.118]
[1740408127859,3.45861031,2673.0,2672.3,1.118]
[1740408128259,3.45861031,2673.0,2672.3,1.86631]
[1740408128260,3.2078,2672.8,2672.3,1.86631]
[1740408128464,3.45861031,2673.0,2671.7,3.2078]
[1740408128465,3.2078,2672.5,2671.7,3.2078]
[1740408128671,3.2078,2672.5,2672.0,3.2078]
[1740408128968,3.454,2672.4,2672.1,1.87096]
[1740408129163,3.454,2672.4,2671.6,3.2078]
[1740408129365,0.7484,2672.1,2671.6,3.95631]
[1740408129565,3.2078,2672.2,2671.3,3.761]
[1740408129869,3.2078,2672.2,2671.3,0.5532]
[1740408129870,3.46,2672.1,2671.3,0.5532]
[1740408130172,3.2078,2671.9,2671.0,3.2078]
[1740408130472,3.2078,2671.3,2670.4,0.5522]
[1740408130769,3.2078,2671.3,2670.3,4.3824]
[1740408130770,4.21264,2671.2,2670.6,0.74878]
[1740408131072,3.2078,2671.3,2670.7,3.2078]
[1740408131073,0.00561031,2671.1,2670.7,3.2078]
[1740408131261,0.00561031,2671.1,2671.0,0.74869]
[1740408131466,0.00561031,2671.1,2671.0,3.95649]
[1740408131666,3.464,2671.3,2671.2,0.74863]
[1740408131964,3.464,2671.3,2670.9,1.87178]
[1740408131965,3.464,2671.3,2670.9,0.7487]
[1740408132173,3.2078,2671.8,2670.7,3.2078]
[1740408132470,23.9398,2672.1,2671.6,0.74852]
[1740408132670,3.479,2672.0,2671.4,3.2078]
[1740408132877,3.479,2672.0,2671.0,3.2078]
[1740408133070,3.479,2672.0,2671.6,0.00561031]
[1740408133570,0.74849,2671.7,2671.6,0.00561031]
[1740408134079,6.74849,2671.7,2671.6,0.00561031]
[1740408134778,1.87161,2671.2,2670.3,1.1746]
[1740408134975,3.2078,2670.7,2669.8,3.76]
[1740408135172,3.2078,2670.4,2669.8,3.76]
[1740408135375,3.491,2670.5,2670.1,3.2078]
[1740408135578,3.2078,2671.3,2670.4,3.2078]
[1740408135772,3.2078,2671.7,2671.0,3.2078]
[1740408135977,20.746,2671.8,2671.0,3.2078]
[1740408135978,20.746,2671.8,2671.7,0.74849]
[1740408136185,0.00561031,2671.6,2671.5,0.74855]
[1740408136481,3.21341031,2671.6,2671.1,0.5743]
[1740408136685,3.21341031,2671.6,2670.6,3.2078]
[1740408136885,0.00561031,2671.6,2671.5,0.74855]
[1740408137487,0.00561031,2671.6,2671.5,3.95635]
[1740408137683,3.501,2671.9,2671.5,3.2078]
[1740408137985,3.501,2671.9,2671.3,0.5914]
[1740408138182,4.24945,2671.9,2671.5,0.74854]
[1740408138484,3.501,2671.9,2671.1,44.0078]
[1740408138679,3.501,2671.9,2671.1,3.2078]
[1740408138881,0.7486,2671.3,2671.2,0.00561031]
[1740408139080,0.7486,2671.3,2670.6,0.74879]
[1740408139081,0.7487,2671.0,2670.6,0.74879]
[1740408139286,6.7198,2671.3,2670.3,3.2078]
[1740408139784,6.7198,2671.3,2670.7,0.74876]
[1740408139981,6.7198,2671.3,2670.4,1.87215]
[1740408140286,0.74871,2671.0,2670.6,0.74879]
[1740408140491,6.7198,2671.3,2671.0,0.74868]
[1740408140792,6.7198,2671.3,2670.5,3.2078]
[1740408140982,3.2078,2671.0,2670.7,0.74876]
[1740408141178,0.74875,2670.8,2670.2,3.2078]
[1740408141386,3.519,2670.7,2670.2,3.2078]
[1740408141680,6.7268,2670.7,2669.8,3.2078]
[1740408141983,6.7268,2670.7,2670.3,0.74887]
[1740408142191,6.7268,2670.7,2669.8,3.2078]
[1740408142484,0.74884,2670.5,2669.8,3.2078]
[1740408142684,6.7268,2670.7,2669.8,3.2078]
[1740408142889,6.7268,2670.7,2669.8,5.08032]
[1740408143193,3.2078,2670.4,2669.8,3.2078]
[1740408143383,0.74892,2670.2,2669.8,3.95681]
[1740408143686,3.523,2670.1,2670.0,0.74897]
[1740408144695,0.00561031,2670.5,2670.0,0.74897]
[1740408144990,0.00561031,2670.5,2670.4,0.74886]
[1740408145181,3.521,2670.8,2670.7,0.74877]
[1740408145694,3.521,2670.8,2670.3,4.3457]
[1740408145891,3.521,2670.8,2670.7,0.74877]
[1740408146393,0.00561031,2671.0,2670.6,3.2078]
[1740408146694,0.00561031,2671.0,2670.9,3.95652]
[1740408147284,24.273,2671.5,2671.4,0.74858]
[1740408147487,3.516,2671.5,2671.3,3.2078]
[1740408147792,0.74864,2671.2,2671.0,0.74867]
[1740408148091,1.87162,2671.2,2670.4,3.2078]
[1740408148290,0.74859,2671.4,2671.1,0.74864]
[1740408148486,0.00561031,2671.1,2670.4,3.2078]
[1740408148686,3.517,2671.0,2670.9,0.74872]
[1740408148889,6.7248,2671.0,2670.3,1.1379]
[1740408149085,3.2078,2670.6,2670.2,0.00561031]
[1740408149392,3.518,2670.5,2670.2,0.00561031]
[1740408149791,4.26684,2670.5,2670.2,0.75451031]
[1740408150088,3.518,2670.5,2670.2,0.75451031]
[1740408150288,4.26683,2670.5,2670.2,0.75451031]
[1740408150484,3.518,2670.5,2670.2,0.00561031]
[1740408151282,3.95668,2670.3,2670.2,0.00561031]
[1740408151593,3.95668,2670.3,2669.5,0.7491]
[1740408151594,5.37854262,2670.3,2669.5,0.7491]
[1740408151791,3.2078,2669.9,2669.2,3.2078]
[1740408151982,3.51,2669.8,2669.6,0.74906]
[1740408152291,3.2078,2670.2,2669.2,3.2078]
[1740408152588,20.76961031,2671.1,2669.8,3.2078]
[1740408152589,3.509,2670.1,2669.8,3.2078]
[1740408152792,3.509,2670.0,2669.9,0.74898]
[1740408152993,3.509,2670.0,2669.7,0.74904]
[1740408153191,3.509,2670.0,2669.4,3.21341031]
[1740408153382,0.74901,2669.9,2669.4,3.21341031]
[1740408153587,3.509,2670.0,2669.4,3.21341031]
[1740408153991,3.2078,2669.8,2669.4,0.00561031]
[1740408154195,0.74911,2669.5,2669.4,0.00561031]
[1740408154488,7.46691,2669.5,2669.4,0.00561031]
[1740408155194,7.46691,2669.5,2668.6,3.00367]
[1740408155195,12.7178,2669.5,2667.8,3.2078]
[1740408155487,3.2078,2668.4,2667.4,3.2078]
[1740408155694,3.2078,2668.4,2667.9,0.47675592]
[1740408155695,0.74951,2668.1,2667.9,0.47675592]
[1740408155883,0.74953,2668.0,2667.9,0.47675592]
[1740408156088,3.2078,2668.1,2667.4,3.2078]
[1740408156291,20.771,2668.7,2668.0,3.2078]
[1740408156586,3.549,2668.6,2668.3,3.2078]
[1740408156791,3.55,2668.5,2668.4,0.74939]
[1740408156992,0.00562103,2668.6,2668.5,0.74939]
[1740408157287,3.554,2669.0,2668.9,0.74928]
[1740408157490,3.554,2669.0,2668.7,3.95712]
[1740408157691,3.554,2669.0,2668.5,0.47713618]
[1740408157692,0.74933,2668.8,2668.5,0.47713618]
[1740408157885,3.2078,2669.0,2668.9,0.74928]
[1740408158087,3.575,2669.0,2668.9,3.2078]
[1740408158392,0.00562103,2669.2,2668.9,3.2078]
[1740408158691,3.58,2669.1,2668.7,0.00562103]
[1740408158892,0.74927,2669.0,2668.7,0.00562103]
[1740408159093,0.74931,2668.8,2668.7,0.00562103]
[1740408159490,3.2078,2669.0,2668.9,0.74928]
[1740408159694,3.585,2669.0,2668.9,0.74928]
[1740408159995,0.00562103,2669.2,2669.1,0.74922]
[1740408160193,0.00562103,2669.2,2669.1,44.75702]
[1740408160586,3.585,2669.5,2669.4,0.74914]
[1740408161083,3.585,2669.5,2669.1,3.68512653]
[1740408161290,3.585,2669.5,2669.4,0.74914]
[1740408161484,3.59,2669.6,2668.9,1.104]
[1740408161689,3.2078,2669.5,2668.9,1.104]
[1740408161892,0.00562103,2669.7,2669.1,3.2078]
[1740408162094,0.00562103,2669.7,2669.4,0.74912]
[1740408162291,0.00562103,2669.7,2669.6,0.74908]
[1740408162594,2.8588,2669.7,2669.6,0.3733]
[1740408162789,3.60785,2669.7,2669.6,0.3733]
[1740408162990,2.4852,2669.7,2669.6,0.3733]
[1740408163186,0.74916,2669.4,2668.7,0.00562103]
[1740408163391,3.2078,2669.3,2668.8,0.7493]
[1740408163591,3.2504,2669.2,2668.7,0.00562103]
[1740408163898,2.8342,2669.0,2668.7,0.00562103]
[1740408164197,2.087,2669.0,2668.7,0.00562103]
[1740408164499,1.7134,2669.0,2668.8,0.49326523]
[1740408164700,2.08907,2669.0,2668.8,0.49326523]
[1740408165002,0.37568,2668.9,2668.8,0.86656523]
[1740408165296,0.5926,2669.0,2668.9,0.49326523]
[1740408165504,6.96825,2669.0,2668.9,0.49326523]
[1740408165697,6.96825,2669.0,2668.9,0.94310658]
[1740408165891,9.05525,2669.0,2668.9,0.94310658]
[1740408166094,9.05525,2669.0,2668.9,2.17203707]
[1740408166593,9.05525,2669.0,2668.9,1.72219572]
[1740408166989,3.95705,2669.0,2668.9,1.72219572]
[1740408167195,3.21342103,2669.3,2668.9,1.72219572]
[1740408167401,6.8108,2669.2,2669.0,0.4499683]
[1740408167702,0.74922,2669.1,2669.0,0.49326523]
[1740408167897,0.74922,2669.1,2669.0,0.94323662]
[1740408168104,0.74922,2669.1,2669.0,0.94324635]
[1740408168300,6.0,2669.1,2668.7,0.00562103]
[1740408168500,0.74945,2668.3,2667.9,1.12285]
[1740408168705,3.61,2668.2,2668.1,0.3733]
[1740408168898,3.7702,2669.0,2668.6,0.3733]
[1740408169202,3.611,2668.9,2668.8,0.3733]
[1740408169396,4.36028,2668.9,2668.0,1.34408885]
[1740408169604,4.36028,2668.9,2667.7,3.2078]
[1740408169605,3.2078,2668.7,2668.2,0.3733]
[1740408169899,3.611,2668.9,2668.2,0.37892103]
[1740408170099,3.611,2668.8,2668.7,0.3733]
[1740408170300,4.36031,2668.8,2668.7,0.3733]
[1740408170494,10.36031,2668.8,2668.7,0.3733]
[1740408170705,10.36031,2668.8,2668.4,0.3733]
[1740408170706,0.74939,2668.5,2668.4,0.3733]
[1740408170893,0.74939,2668.5,2668.3,1.34403928]
[1740408171094,0.74942,2668.4,2668.3,1.34403928]
[1740408171505,0.74942,2668.4,2668.3,0.51693818]
[1740408171799,6.74942,2668.4,2668.3,0.89023818]
[1740408172006,0.74945,2668.3,2668.2,1.03e-06]
[1740408172208,7.57525,2668.3,2668.2,1.03e-06]
[1740408172399,0.27452847,2667.2,2666.6,0.57981483]
[1740408172605,0.27452847,2667.2,2666.5,0.3733]
[1740408172606,3.2078,2666.7,2666.5,0.3733]
[1740408172799,3.779,2666.6,2666.5,1.12325]
[1740408172999,23.9908,2667.2,2666.7,1.12318]
[1740408173206,3.2078,2666.9,2666.7,0.3733]
[1740408173597,4.54187,2666.8,2666.7,0.3733]
[1740408173898,3.803,2666.8,2666.7,0.3733]
[1740408174094,0.00562103,2667.1,2667.0,0.74981]
[1740408174299,0.00562103,2667.1,2666.8,0.9195]
[1740408174499,0.00562103,2667.1,2667.0,0.74981]
[1740408174705,0.00562103,2667.1,2666.6,1.1633]
[1740408174901,3.2078,2667.0,2666.7,0.3733]
[1740408175102,4.59785,2666.9,2666.7,0.3733]
[1740408175407,4.59784,2666.9,2666.8,0.3733]
[1740408175602,4.59784,2666.9,2666.8,1.47730943]
[1740408175905,10.59784,2666.9,2666.8,1.4716884]
[1740408176104,10.59784,2666.9,2666.8,0.3733]
[1740408176105,3.848,2666.9,2666.8,0.3733]
[1740408176308,1.87507,2666.3,2665.1,3.2078]
[1740408176605,3.889,2666.2,2665.4,3.2078]
[1740408176798,3.889,2666.1,2665.8,0.3733]
[1740408177005,3.89,2666.0,2665.8,0.3733]
[1740408177199,3.891,2665.9,2665.5,0.3733]
[1740408177413,0.75016,2665.8,2665.5,0.3733]
[1740408177709,0.75021,2665.6,2665.5,0.3733]
[1740408177911,6.0,2665.6,2663.6,1.55872712]
[1740408178114,6.0,2665.6,2662.6,7.994]
[1740408178115,3.2078,2662.8,2662.7,2.56321141]
[1740408178317,0.28535772,2662.1,2661.4,15.01120821]
[1740408178612,0.28535772,2662.1,2660.6,3.2078]
[1740408178613,3.2078,2662.0,2660.6,3.2078]
[1740408178810,3.2078,2661.3,2660.5,0.5498]
[1740408179016,4.087,2661.3,2661.2,0.95050499]
[1740408179313,7.5008,2661.3,2661.0,20.34941019]
[1740408179607,0.75145,2661.2,2661.1,0.00686998]
[1740408179915,3.2078,2661.6,2661.2,0.00686998]
[1740408180101,0.75142,2661.3,2661.2,0.00686998]
[1740408180304,20.80563327,2662.0,2661.5,0.3699]
[1740408180305,0.00563327,2662.0,2661.5,0.3699]
[1740408180610,0.00563327,2662.0,2661.9,15.01120821]
[1740408180812,0.75102,2662.7,2662.6,14.70686932]
[1740408181002,0.7508,2663.5,2663.4,14.70686932]
[1740408181207,3.2078,2665.2,2663.4,3.66328242]
[1740408181410,0.75049,2664.6,2664.5,0.3733]
[1740408181813,3.7507,2665.9,2664.5,0.3733]
[1740408181814,5.137,2664.9,2664.5,11.37375045]
[1740408182012,3.2078,2665.9,2664.8,3.21578486]
[1740408182213,3.2078,2665.9,2665.2,0.00798486]
[1740408182214,5.21802438,2665.8,2665.2,0.00798486]
[1740408182411,0.00563327,2665.6,2665.4,0.00798486]
[1740408182713,0.00563327,2665.6,2665.5,0.47735659]
[1740408182912,0.00563327,2665.6,2665.5,7.98316394]
[1740408183108,5.166,2666.9,2665.8,0.00798486]
[1740408183314,5.166,2666.9,2666.8,0.00798486]
[1740408183613,5.166,2666.9,2666.8,11.19062513]
[1740408183814,5.165,2667.6,2667.2,0.00798486]
[1740408184005,5.164,2667.8,2667.5,10.71360735]
[1740408184205,20.806,2668.8,2667.8,7.50580735]
[1740408184411,5.158,2668.7,2668.0,7.50580735]
[1740408184627,0.00562229,2668.6,2668.1,4.61482631]
[1740408184809,0.00562229,2668.6,2668.5,0.74939]
[1740408185010,5.15562229,2668.6,2668.5,2.15653477]
[1740408185314,5.15562229,2668.6,2668.5,1.35571154]
[1740408185518,11.15562229,2668.6,2668.2,1.44616314]
[1740408185811,5.152,2668.5,2668.2,1.44616314]
[1740408186011,8.3598,2668.5,2667.4,0.57298787]
[1740408186206,3.2078,2667.7,2667.4,0.57298787]
[1740408186412,0.74976,2667.2,2666.5,0.57298787]
[1740408186612,3.2078,2666.6,2665.3,1.02288958]
[1740408186810,3.2078,2666.3,2666.1,7.50580735]
[1740408187019,5.157,2666.2,2666.1,7.50580735]
[1740408187222,5.157,2666.2,2665.4,1.16217642]
[1740408187415,5.157,2666.2,2666.1,8.25586735]
[1740408187616,5.157,2666.2,2666.1,0.3733]
[1740408188019,5.157,2666.2,2666.1,8.62916735]
[1740408188219,4.35064,2666.2,2666.1,9.56733202]
[1740408188419,3.2078,2667.4,2666.3,0.3733]
[1740408188618,5.147,2667.1,2666.9,7.50580735]
[1740408189122,5.147,2667.1,2666.8,0.3733]
[1740408189322,5.147,2667.1,2667.0,7.50580735]
[1740408189522,3.2078,2667.8,2667.0,7.50580735]
[1740408189813,12.88249451,2667.0,2666.9,1.15965068]
[1740408190031,12.88249451,2667.0,2666.9,3.03528892]
[1740408190220,16.09029451,2667.0,2666.8,0.37892229]
[1740408191015,5.102,2666.9,2666.8,0.37892229]
[1740408191416,5.85184,2666.9,2666.8,0.37892229]
[1740408191719,5.85184,2666.9,2665.8,3.2078]
[1740408191720,11.102,2666.9,2665.7,0.3733]
[1740408191915,11.102,2666.9,2666.2,0.3733]
[1740408191916,3.2078,2666.3,2666.2,0.3733]
[1740408192118,8.2968,2666.3,2666.2,0.3733]
[1740408192316,3.2078,2666.9,2666.2,3.40858892]
[1740408192619,3.2078,2666.9,2666.7,0.3733]
[1740408192620,3.5918,2666.8,2666.7,0.3733]
[1740408193018,21.17849563,2667.0,2666.4,1.87493]
[1740408193220,20.80489563,2667.0,2666.9,3.2078]
[1740408193421,5.53048704,2667.0,2666.9,4.89543888]
[1740408193618,8.22435809,2667.2,2666.9,11.18627618]
[1740408193823,6.40515809,2667.2,2667.1,0.3733]
[1740408194123,16.36271809,2667.2,2667.1,0.3733]
[1740408194424,16.36271809,2667.2,2666.6,0.57430539]
[1740408194425,10.36272809,2667.2,2666.7,0.3733]
[1740408194619,2.087,2666.8,2666.7,0.3733]
[1740408195018,2.087,2666.8,2666.4,0.3733]
[1740408195221,6.40515809,2667.2,2667.1,1.12308]
[1740408195425,6.03185809,2667.2,2667.1,1.5124282]
[1740408195725,3.50135809,2667.2,2667.1,5.4700082]
[1740408195923,3.50135809,2667.2,2667.1,2.26215444]
[1740408196123,3.50135809,2667.2,2667.1,11.4699975]
[1740408196522,2.62109809,2667.2,2667.1,12.37711551]
[1740408197230,0.00562229,2667.3,2667.2,0.3733]
[1740408197423,0.00562229,2667.3,2667.2,0.84212415]
[1740408197725,0.00562229,2667.3,2667.2,0.90745806]
[1740408197927,0.00562229,2667.3,2667.2,8.96811798]
[1740408198326,0.00562229,2667.3,2667.2,10.0888814]
[1740408198531,2.29e-06,2667.3,2667.2,10.08873537]
[1740408199027,8.61740814,2668.1,2668.0,0.74953]
[1740408199432,8.61740814,2668.1,2667.8,0.74956]
[1740408199619,3.2078,2668.0,2667.6,0.3733]
[1740408199928,8.62303043,2668.1,2667.7,1.51253489]
[1740408200133,8.62303043,2668.1,2667.9,3.2078]
[1740408200429,7.18700211,2667.8,2667.5,0.37892229]
[1740408200630,7.18700211,2667.8,2667.7,0.74961]
[1740408200832,7.18700211,2667.8,2667.7,4.89474819]
[1740408201025,7.18700211,2667.8,2667.7,2.65909172]
[1740408201324,7.18700211,2667.8,2667.7,1.72175353]
[1740408201727,7.93659211,2667.8,2667.7,2.29675872]
[1740408202031,7.18700211,2667.8,2667.7,2.29675872]
[1740408202228,7.18700211,2667.8,2667.7,3.04636872]
[1740408202529,6.81360211,2667.8,2667.7,1.72175353]
[1740408202927,7.56319211,2667.8,2667.7,1.72175353]
[1740408203127,10.77099211,2667.8,2667.7,1.72175353]
[1740408203324,21.56440785,2667.8,2667.5,0.58062748]
[1740408203530,0.74964,2667.6,2667.5,0.95392748]
[1740408204025,4.49844,2667.6,2667.5,0.00562229]
[1740408204731,10.02140211,2667.8,2667.5,0.37892229]
[1740408205038,0.74961,2667.7,2667.6,0.3733]
[1740408205335,3.7488,2667.8,2667.6,0.3733]
[1740408205532,4.31691113,2667.9,2667.6,0.3733]
[1740408206026,4.31691113,2667.9,2667.6,1.12294]
[1740408206223,0.74961,2667.7,2667.6,0.3733]
[1740408206621,0.74981,2667.0,2666.9,0.3733]
[1740408206820,3.7488,2667.6,2667.1,0.3733]
[1740408207032,0.37635,2666.5,2665.8,23.9998]
[1740408207229,1.87462,2666.9,2665.8,23.9998]
[1740408207230,6.5832,2666.9,2666.1,3.2078]
[1740408207528,0.74992,2666.6,2666.3,0.74999]
[1740408207730,2.8344,2666.9,2666.6,0.3733]
[1740408207934,3.7488,2666.7,2666.6,0.3733]
[1740408208230,5.92512803,2666.7,2666.6,0.3733]
[1740408208530,5.92512803,2666.7,2665.8,20.792]
[1740408208531,3.2078,2667.4,2667.2,0.3733]
[1740408208729,5.17815803,2667.3,2667.2,0.3733]
[1740408209332,11.17815803,2667.3,2667.2,0.3733]
[1740408209536,10.42842803,2667.3,2667.0,0.00562229]
[1740408209835,8.38600803,2667.1,2667.0,0.00562229]
[1740408210232,5.7558815,2667.4,2667.0,0.82918973]
[1740408210437,3.38395229,2667.3,2667.2,0.3733]
[1740408210733,2.54393574,2667.3,2667.2,0.3733]
[1740408210923,11.17815803,2667.3,2667.2,1.25031034]
[1740408211726,11.17815803,2667.3,2667.2,0.3733]
[1740408211927,2.63422229,2667.1,2666.4,0.3733]
[1740408212235,5.75195574,2666.5,2666.4,0.3733]
[1740408212437,2.63422229,2666.6,2666.4,0.3733]
[1740408212626,3.7952,2667.3,2666.5,1.70477524]
[1740408212829,2.63422229,2667.2,2667.0,0.3733]
[1740408213131,3.95753,2667.3,2667.2,0.3733]
[1740408213330,5.84202229,2667.3,2667.1,1.97910355]
[1740408213536,5.84202229,2667.3,2666.6,0.57500519]
[1740408213537,1.79420574,2667.2,2666.6,0.57500519]
[1740408213837,7.63622803,2666.7,2665.2,3.2078]
[1740408214029,3.2078,2666.0,2665.3,3.98899189]
[1740408214332,3.2078,2665.7,2665.4,2.113369]
[1740408214635,0.75021,2665.6,2665.5,1.54837002]
[1740408214830,5.84202229,2665.7,2665.5,1.54837002]
[1740408215036,6.59220229,2665.7,2665.6,0.84244367]
[1740408215332,3.2078,2665.7,2665.6,2.34329648]
[1740408215628,0.00562229,2665.9,2665.8,1.12345]
[1740408215833,0.00562229,2665.9,2665.8,2.34323648]
[1740408216029,0.75001,2666.3,2666.2,0.3733]
[1740408216335,5.17843803,2666.3,2666.2,0.46914367]
[1740408216540,11.17281574,2666.3,2666.2,1.37302275]
[1740408216935,11.17281574,2666.3,2666.2,0.39945431]
[1740408217236,3.21342229,2666.5,2666.0,0.00562229]
[1740408217435,3.38428229,2666.1,2666.0,0.00562229]
[1740408217632,0.75012,2665.9,2664.9,3.2078]
[1740408217830,0.37666,2665.1,2664.5,1.87625]
[1740408218136,0.75041,2664.9,2664.8,0.75074332]
[1740408218330,9.20217771,2665.3,2664.8,0.75074332]
[1740408218531,3.95815,2665.1,2665.0,0.3733]
[1740408218930,5.46832229,2665.1,2665.0,1.12367]
[1740408219132,6.21867229,2665.1,2665.0,1.12367]
[1740408219330,13.25690574,2665.1,2664.1,3.2078]
[1740408219532,2.63422229,2664.9,2664.7,0.3733]
[1740408219740,3.95824,2664.8,2664.7,0.3733]
[1740408219934,8.01296803,2664.8,2664.7,0.3733]
[1740408220236,14.00734574,2664.8,2664.7,0.3733]
[1740408220436,0.75054,2664.4,2664.3,0.95386643]
[1740408220741,5.17898803,2664.4,2664.3,0.3733]
[1740408220933,10.04910574,2664.4,2664.3,0.3733]
[1740408221133,5.9847,2664.7,2664.3,1.12431535]
[1740408221335,7.69322229,2664.7,2664.6,0.3733]
[1740408221530,2.987,2669.3,2664.7,3.731]
[1740408221733,3.2078,2668.0,2667.8,0.3733]
[1740408221928,2.26052229,2667.9,2667.7,0.3733]
[1740408222135,5.75159574,2667.8,2667.7,0.3733]
[1740408222335,7.26252803,2667.8,2667.7,0.3733]
[1740408222535,5.00200574,2667.8,2666.6,3.2078]
[1740408222742,5.169,2667.7,2667.6,0.74964]
[1740408222935,0.00562229,2668.0,2667.5,0.3733]
[1740408223136,0.78282229,2668.2,2667.8,0.74957]
[1740408223342,1.79420574,2668.0,2667.9,0.74956]
[1740408223543,2.57702803,2668.2,2667.7,3.2078]
[1740408223740,1.97662803,2668.2,2667.7,3.2078]
[1740408224040,1.97662803,2668.2,2668.1,0.7495]
[1740408224243,1.97662803,2668.2,2668.0,0.74952]
[1740408224434,1.97662803,2668.2,2667.7,3.2078]
[1740408224635,3.21342229,2668.4,2667.7,3.2078]
[1740408224939,5.92470063,2668.3,2668.2,3.95727]
[1740408225137,5.03775063,2668.3,2668.2,3.95727]
[1740408225353,4.07314063,2668.3,2668.2,4.70707295]
[1740408225534,1.97635063,2668.3,2668.2,4.70705555]
[1740408226032,1.21964063,2668.3,2668.2,4.70705555]